Cogmind - Beta 13 @@@ ROGUE MODE // 2024.04.06 @ 01:01:39 Player: Kafouille Result: Destroyed by G-47 Trooper with Particle Gun Performance ------------- Evolutions (2) 1000 Regions Visited (4) 800 Robots Destroyed (179) 895 Value Destroyed (4520) 4520 Prototype IDs (13) 260 Alien Tech Used (0) 0 Bonus (536) 536 TOTAL SCORE: 8011 Bonus ------- High Alert Combat Kills 536 Cogmind --------- Core Integrity 0/550 Matter 280/300 Energy 72/100 System Corruption 0% Temperature Danger (481) Movement Treading (170) Location -8/Materials Parts ------- > --- POWER (1) -------- (None) > --- PROPULSION (2) --- Armored Treads > --- UTILITY (5) ------ System Shield > --- WEAPON (3) ------- Heavy Particle Gun Heavy Particle Cannon > --- INVENTORY (5) ---- Advanced Targeting Computer System Restoration Module Peak State ------------ > --- POWER ------------ Heavy Ion Engine > --- PROPULSION ------- Light Treads Armored Treads > --- UTILITY ---------- Advanced Heat Sink Medium Storage Unit Hardened Light Armor Plating Hardlight Generator System Shield > --- WEAPON ----------- Heavy Particle Gun Enhanced Autogun Enhanced Autogun > --- INVENTORY -------- Deuterium Engine Light Treads Improved Heat Sink Improved Sensor Array Advanced Targeting Computer Hardened Light Armor Plating Hardened Medium Armor Plating Heavy Particle Cannon Ion Cannon Ion Cannon [Rating: 35] Favorites ----------- Power Ion Engine Engine Ion Engine Propulsion Light Treads Treads Light Treads Leg Aluminum Leg Utility Medium Storage Unit Device Cooling System Storage Medium Storage Unit Hackware System Shield Protection Hardened Light Armor Plating Weapon Advanced Beam Cannon Energy Gun Heavy Particle Gun Energy Cannon Advanced Beam Cannon Ballistic Gun Enhanced Autogun Ballistic Cannon Light Cannon Launcher Grenade Launcher Build | -11 -10 -9 -9 -8 ------- Run | Yrd Mat Mat Sto Mat Slots Evolved 4 | . . 2 . 2 Power . | . . . . . Propulsion . | . . . . . Utility 3 | . . 1 . 2 Weapon 1 | . . 1 . . Parts Attached 88 | 6 9 28 14 31 Power 10 | 1 2 4 2 1 Engine 10 | 1 2 4 2 1 Core . | . . . . . Reactor . | . . . . . Propulsion 20 | 2 1 6 3 8 Treads 18 | 2 1 4 3 8 Leg 2 | . . 2 . . Wheel . | . . . . . Hover . | . . . . . Flight . | . . . . . Utility 22 | 1 1 6 2 12 Device 9 | . 1 1 1 6 Storage 3 | 1 . 1 . 1 Processor . | . . . . . Hackware 1 | . . . . 1 Protection 9 | . . 4 1 4 Artifact . | . . . . . Weapon 36 | 2 5 12 7 10 Energy Gun 6 | 1 1 1 2 1 Energy Cannon 9 | . . 3 3 3 Ballistic Gun 13 | 1 . 6 2 4 Ballistic Cannon 4 | . 2 2 . . Launcher 4 | . 2 . . 2 Special Weapon . | . . . . . Impact Weapon . | . . . . . Slashing Weapon . | . . . . . Piercing Weapon . | . . . . . Special Melee Weapon . | . . . . . Unidentified Prototypes 4 | . . 1 1 2 Parts Lost 29 | . 1 6 9 13 Power 4 | . 1 . 1 2 Propulsion 8 | . . 2 2 4 Utility 10 | . . 2 3 5 Weapon 7 | . . 2 3 2 Highest Loss Streak 7 | . 1 4 5 7 To Critical Strikes . | . . . . . Average Slot Usage (%) 88 | . 93 77 89 94 Engine 11 | . 13 11 11 8 Treads 19 | . 28 16 19 16 Device 10 | . 8 6 10 14 Storage 12 | . 14 11 11 12 Hackware 2 | . . . . 6 Protection 4 | . . 5 4 7 Energy Gun 2 | . 2 . . 4 Energy Cannon 6 | . . 4 15 7 Ballistic Gun 9 | . . 10 15 13 Ballistic Cannon 4 | . 11 6 . . Launcher 4 | . 13 1 . 1 Naked Turns . | . . . . . Heaviest Build 42 | 13 17 36 36 42 Greatest Support 46 | 40 40 40 40 46 Greatest Overweight (x) 7 | . . 4 1 7 Average Overweight (x) . | . . . . . Largest Inventory Capacity 10 | 8 8 10 10 10 Average Capacity 9 | 6 8 8 10 9 Most Carried 10 | 2 8 8 10 10 Average Carried 7 | . 4 7 8 9 Final Capacity 10 | 8 8 10 10 5 Final Carried 8 | 1 8 8 8 2 Class Distribution -------------------- 45% | Tank 40% | Mutant 14% | Gunner Dominant Class ---------------- Mutant | -10/Materials Mutant | -9/Materials Gunner | -9/Storage Tank | -8/Materials Resources | -11 -10 -9 -9 -8 ----------- Run | Yrd Mat Mat Sto Mat Matter Collected 3480 | 202 667 982 461 1168 Remotely . | . . . . . Salvage Created 6725 | . 617 1821 1640 2647 Parts 380 | . 42 117 88 133 Haulers Intercepted 14 | . 2 3 4 5 Recyclers Shooed 11 | . 3 5 1 2 Parts Field Recycled . | . . . . . Retrieved Matter . | . . . . . Parts Self-Destructed . | . . . . . Prevented . | . . . . . Kills | -11 -10 -9 -9 -8 ------- Run | Yrd Mat Mat Sto Mat Combat Hostiles Destroyed 109 | . 15 33 21 40 Guns 33 | . 2 5 9 17 Cannons 56 | . 4 21 12 19 AOE 19 | . 9 7 . 3 Classes Destroyed 15 | . 8 3 . 4 Worker 11 | . 1 10 . . Builder 7 | . 2 1 . 4 Tunneler 1 | . . . . 1 Hauler 14 | . 2 3 4 5 Recycler 18 | . 2 6 5 5 Operator 6 | . 2 . 2 2 Watcher 14 | . 3 4 2 5 Swarmer 17 | . 3 3 3 8 Cutter 3 | . . . . 3 Grunt 59 | . 12 22 7 18 Brawler 2 | . . 1 . 1 Duelist 2 | . . 1 1 . Protector 1 | . . . . 1 Sentry 22 | . . 6 10 6 Hunter 3 | . . . . 3 Best Kill Streak 10 | . 7 10 7 9 Combat Bots Only 8 | . 6 8 3 7 Max Kills in Single Turn 3 | . 2 2 1 3 Gunslinging . | . . . . . Exploded 2 | . 2 2 . 2 Melee . | . . . . . Uniques/NPCs Destroyed . | . . . . . Combat | -11 -10 -9 -9 -8 -------- Run | Yrd Mat Mat Sto Mat Hostile Shots Fired 568 | . 39 148 150 231 Missed 155 | . 14 52 33 56 Damage Taken 6176 | . 470 1152 1596 2958 Core 982 | . 80 145 193 564 Absorbed by Shields 184 | . . . . 184 Regen/Repaired (Parts) 124 | . . . 124 . Core Remaining (%) 61 | 100 68 . 15 . Volleys Fired 435 | . 89 117 82 147 Largest 3 | . 2 3 3 3 Hottest 181 | . 70 114 159 181 Shots Fired 972 | . 117 229 244 382 Gun 486 | . 25 93 125 243 Cannon 440 | . 64 127 119 130 Launcher 46 | . 28 9 . 9 Special . | . . . . . Kinetic 544 | . 64 181 122 177 Thermal 340 | . . 34 119 187 Explosive 37 | . 28 9 . . Electromagnetic 51 | . 25 5 3 18 Robot Hit Streak 17 | . 6 9 17 14 Robot Miss Streak 8 | . 5 4 8 6 Penetration Max . | . . . . . Secondary Targets . | . . . . . Shots Hit Robots 542 | . 63 127 145 207 Core Hits 252 | . 38 77 42 95 Critical Kills 1 | . . . . 1 Critical Parts Destroyed 2 | . . . 1 1 Critical Strikes 12 | . 3 1 1 7 Burn 5 | . . . . 5 Meltdown 1 | . . . . 1 Destroy 2 | . . . 1 1 Blast 4 | . 3 1 . . Melee Attacks . | . . . . . Impact . | . . . . . Slashing . | . . . . . Piercing . | . . . . . Sneak Attacks . | . . . . . Combat Hostiles . | . . . . . Follow-up Attacks . | . . . . . Damage Inflicted 11754 | . 1713 2849 2577 4615 Guns 4272 | . 167 721 1044 2340 Cannons 5131 | . 705 1398 1533 1495 Explosions 2336 | . 841 724 . 771 Melee . | . . . . . Ramming 15 | . . 6 . 9 Kinetic 5005 | . 705 1737 1009 1554 Thermal 4413 | . 122 328 1533 2430 Explosive 1443 | . 719 724 . . Electromagnetic 878 | . 167 54 35 622 Impact . | . . . . . Slashing . | . . . . . Piercing . | . . . . . Highest Corruption 2 | . . . 2 . Average Corruption 2 | . . . 2 . Corruption Purged . | . . . . . Corruption Blocked . | . . . . . Effects 1 | . . . 1 . Misfires 1 | . . . 1 . Overload Shots . | . . . . . Overflow Damage 115 | . 42 36 24 13 Projectiles 44 | . 23 12 . 9 Explosions 71 | . 19 24 24 4 Melee . | . . . . . Knockbacks 20 | . 9 11 . . Impact . | . . . . . Kinetic 19 | . 9 10 . . Secondary 1 | . . 1 . . Self-Inflicted Damage 410 | . 188 46 43 133 Shots 11 | . 4 2 1 4 Rammed 5 | . 2 1 . 2 Targets Rammed 5 | . 2 1 . 2 Kicked . | . . . . . Crushed . | . . . . . Highest Temperature 472 | . 36 180 258 472 Average Temperature 85 | . 11 34 71 119 Received Heat Transfer 1987 | . 132 447 501 907 Effects 8 | . . . . 8 Shutdowns 1 | . . . . 1 Interference 5 | . . . . 5 Matter Decay 1 | . . . . 1 Damage (minor) 1 | . . . . 1 Siege Activations . | . . . . . Robots Corrupted . | . . . . . Combat Hostiles . | . . . . . Parts Fried . | . . . . . Impact Corruptions . | . . . . . Robots Melted 1 | . . . . 1 Combat Hostiles 1 | . . . . 1 Parts Melted 14 | . . . 6 8 Heat Transferred 8132 | . 100 592 2775 4665 Parts Sabotaged . | . . . . . Parts Stolen . | . . . . . Parts Stripped . | . . . . . Power Chain Reactions 7 | . 2 . . 5 Alert | -11 -10 -9 -9 -8 ------- Run | Yrd Mat Mat Sto Mat Peak Influence 790 | . 406 514 484 790 Initial 196 | . . 81 179 196 Average 385 | . 270 342 332 556 Maximum Alert Level 3 | . 2 2 2 3 Low Security (%) 12 | 100 22 6 18 3 Level 1 45 | . 76 62 46 9 Level 2 33 | . . 30 35 62 Level 3 7 | . . . . 25 Level 4 . | . . . . . Level 5 . | . . . . . High Security . | . . . . . Max Security . | . . . . . Squads Dispatched 23 | . 4 5 2 12 Investigation 6 | . 1 2 1 2 Extermination . | . . . . . Reinforcement 13 | . 3 3 1 6 Assault 1 | . . . . 1 Garrison 3 | . . . . 3 Intercept . | . . . . . Searches Triggered . | . . . . . Construction Impeded 5 | . . 2 . 3 Haulers Reinforced . | . . . . . Active Scanning Responses . | . . . . . Cargo Convoy Interrupts . | . . . . . Stealth | -11 -10 -9 -9 -8 --------- Run | Yrd Mat Mat Sto Mat Distress Signals 7 | . . 1 5 1 Communications Jammed . | . . . . . Distress Signals . | . . . . . Times Spotted 160 | . 29 39 29 63 Peak Tracking Total 7 | . 4 7 6 6 Tactical Retreats 8 | . 2 1 3 2 Traps | -11 -10 -9 -9 -8 ------- Run | Yrd Mat Mat Sto Mat Traps Triggered 8 | . 1 4 1 2 Indirectly . | . . . . . Trap Hack Attempts . | . . . . . Triggered . | . . . . . Disarmed . | . . . . . Reprogrammed . | . . . . . Reused . | . . . . . Traps Extracted . | . . . . . Installed . | . . . . . Triggered . | . . . . . Machines | -11 -10 -9 -9 -8 ---------- Run | Yrd Mat Mat Sto Mat Machines Disabled 14 | . 6 . 2 6 Max in Single Turn 2 | . 1 . 2 2 Garrison Access 1 | . . . 1 . Machines Repaired . | . . . . . Machines Dismantled . | . . . . . Machines Sabotaged . | . . . . . Overloaded Fab Kills . | . . . . . Hacking | -11 -10 -9 -9 -8 --------- Run | Yrd Mat Mat Sto Mat Machines Accessed 24 | . 3 6 8 7 Terminals 14 | . 2 3 5 4 Fabricators . | . . . . . Repair Stations 2 | . 1 . 1 . Recycling Units 3 | . . 1 1 1 Scanalyzers 3 | . . 2 . 1 Garrison Access 2 | . . . 1 1 Total Hacks 63 | . 7 16 16 24 Successful 32 | . 1 12 6 13 Failed 31 | . 6 4 10 11 Catastrophic 5 | . 1 . 4 . Database Lockouts . | . . . . . Manual . | . . . . . Terminals 34 | . 6 5 10 13 Fabricators . | . . . . . Repair Stations 4 | . 1 . 3 . Recycling Units 7 | . . 1 2 4 Scanalyzers 15 | . . 10 . 5 Garrison Access 3 | . . . 1 2 Terminal Hacks 13 | . 1 3 2 7 Prototype ID Bank 4 | . . 1 . 3 Open Door 2 | . . . 2 . Branch Access Points 2 | . . 1 . 1 Alert Level 2 | . 1 . . 1 Unreport Threat 2 | . . 1 . 1 Registered Components 1 | . . . . 1 Fabricator Hacks . | . . . . . Repair Station Hacks 2 | . . . 2 . Scan Component 1 | . . . 1 . Repair 1 | . . . 1 . Recycling Unit Hacks 3 | . . 1 1 1 Report Inventory 3 | . . 1 1 1 Scanalyzer 12 | . . 8 . 4 Insert Component 6 | . . 4 . 2 Analyze 6 | . . 4 . 2 Garrison Access Hacks 2 | . . . 1 1 Unlock Access 1 | . . . . 1 Seal Access 1 | . . . 1 . Unauthorized Hacks . | . . . . . Terminals . | . . . . . Fabricators . | . . . . . Repair Stations . | . . . . . Recycling Units . | . . . . . Scanalyzers . | . . . . . Garrison Access . | . . . . . Data Cores Recovered 1 | . . . . 1 Used . | . . . . . Hacking Detections 17 | . 3 2 6 6 Full Trace Events 4 | . . 2 2 . Feedback Events . | . . . . . Feedback Blocked . | . . . . . Robot Schematics Acquired . | . . . . . Robots Built . | . . . . . Authchips . | . . . . . Time . | . . . . . Total Robot Build Rating . | . . . . . Part Schematics Acquired 4 | . . 2 . 2 Parts Built . | . . . . . Authchips . | . . . . . Time . | . . . . . Total Part Build Rating . | . . . . . Parts Repaired 1 | . . . 1 . Time 51 | . . . 51 . Parts Recycled . | . . . . . Recycled Matter . | . . . . . Retrieved Matter . | . . . . . Retrieved Components . | . . . . . Parts Scanalyzed 5 | . . 3 . 2 Part Schematics Acquired 4 | . . 2 . 2 Parts Damaged . | . . . . . Bothacking | -11 -10 -9 -9 -8 ------------ Run | Yrd Mat Mat Sto Mat Used RIF Installer . | . . . . . Robots Hacked . | . . . . . Non-combat . | . . . . . Combat . | . . . . . Robot Hacks Applied . | . . . . . Relay Couplers Released . | . . . . . Fabnet Peak Effective % . | . . . . . Robots Rewired . | . . . . . Allies Hacked . | . . . . . Hacks Repelled . | . . . . . Allies | -11 -10 -9 -9 -8 -------- Run | Yrd Mat Mat Sto Mat Total Allies . | . . . . . Largest Group . | . . . . . Highest-Rated Group . | . . . . . Highest-Rated Ally . | . . . . . Total Orders . | . . . . . Ally Attacks . | . . . . . Total Damage . | . . . . . Kills . | . . . . . Allies Corrupted . | . . . . . Allies Melted . | . . . . . Intel | -11 -10 -9 -9 -8 ------- Run | Yrd Mat Mat Sto Mat Robot Analysis Total . | . . . . . Derelict Logs Recovered . | . . . . . Drone Launches . | . . . . . Drone Recoveries . | . . . . . Exploration | -11 -10 -9 -9 -8 ------------- Run | Yrd Mat Mat Sto Mat Turns Passed 7308 | 75 1752 1845 1392 2244 Spaces Moved 3379 | 45 925 889 556 964 Core 20 | 12 . 5 . 3 Treads 3265 | 33 925 790 556 961 Legs 94 | . . 94 . . Wheels . | . . . . . Hover . | . . . . . Flight . | . . . . . Fastest Speed 50 | 50 160 100 160 160 Average Speed 165 | 130 160 159 171 172 Slowest Speed 400 | 160 160 250 240 400 Overloaded Moves . | . . . . . Propulsion Burnouts . | . . . . . Robots Hopped . | . . . . . Cave-ins Triggered . | . . . . . Exploration Rate (%) 62 | 5 96 55 76 79 Regions Visited 4 Branch Regions 1 Pre-discovered Areas . | . . . . . Known Exits Taken 1 | . . 1 . . Unknown Exits Taken 3 | 1 1 . 1 . Scrap Searched . | . . . . . Spaces Dug 7 | . 7 . . . Terrain Destroyed 277 | . 174 57 17 29 Melee . | . . . . . Projectile 4 | . . 1 1 2 AOE 273 | . 174 56 16 27 Terrain Rammed . | . . . . . Walls Destroyed . | . . . . . Machines Disabled . | . . . . . Actions | -11 -10 -9 -9 -8 --------- Run | Yrd Mat Mat Sto Mat Total 4381 | 62 1077 1117 812 1313 Wait 349 | . 40 48 144 117 Move 3375 | 44 924 888 555 964 Hop . | . . . . . Pick Up 75 | 8 10 18 12 27 Fast Attach 24 | 3 2 11 2 6 Attach 33 | 3 2 9 9 10 Detach 1 | . . 1 . . Swap 31 | . 5 8 3 15 Drop 53 | 4 3 16 5 25 Fire 435 | . 89 117 82 147 Melee . | . . . . . Ram . | . . . . . Kick . | . . . . . Crush 5 | . 2 1 . 2 Escape Stasis . | . . . . . Rewire . | . . . . . Trap . | . . . . . Miscellaneous . | . . . . . Route ------- -11/Scrapyard -10/Materials (discovered 5 exits: *Mat x3 / [*Min x2]) -9/Materials (discovered 4 exits: *Mat / *Min / *Sto x2) -9/Storage -8/Materials (discovered 3 exits: [*Fac x2] / Gar) History --------- Turn | Location | Event 2 | -11/Scrapyard | Met Revision 17 44 | -11/Scrapyard | Discovered new exit (range 16) 76 | -11/Scrapyard | Entered Materials 132 | -10/Materials | Discovered new exit (range 13) 315 | -10/Materials | Discovered new exit (range 10) 328 | -10/Materials | Build established: Mutant 679 | -10/Materials | Discovered new exit (range 15) 823 | -10/Materials | Discovered new exit (range 14) 1042 | -10/Materials | Discovered new exit (range 16) 1828 | -10/Materials | Entered another Materials area 1828 | -9/Materials | Evolved 2 slots: Utility x1, Weapon x1 1828 | -9/Materials | Discovered new exit (range 14) 2163 | -9/Materials | Destroyed 8 combat bots 2199 | -9/Materials | Lost 4 parts (1n2u1w) 2957 | -9/Materials | Discovered new exit (range 15) 3123 | -9/Materials | Identified exit to Mines 3123 | -9/Materials | Identified exit to Storage 3222 | -9/Materials | Build established: Tank 3498 | -9/Materials | Discovered new exit (range 16) 3673 | -9/Materials | Entered Storage 3744 | -9/Storage | Repaired Imp. Assault Rifle 4004 | -9/Storage | Core integrity fell below 50% 4041 | -9/Storage | Lost 5 parts (1p2n1u1w) 4290 | -9/Storage | Build established: Gunner 4922 | -9/Storage | Core integrity fell below 20% 4995 | -9/Storage | Discovered new exit (range 12) 5065 | -9/Storage | Entered Materials 5065 | -8/Materials | Evolved 2 slots: Utility x2 5560 | -8/Materials | Discovered new exit (range 5) 5648 | -8/Materials | Build established: Tank 6265 | -8/Materials | First assault squad dispatched 6339 | -8/Materials | Garrison activated, responded to threat 6387 | -8/Materials | Destroyed 7 combat bots 6961 | -8/Materials | Identified exit to Garrison 6987 | -8/Materials | Discovered new exit (range 16) 7242 | -8/Materials | Core integrity fell below 50% 7292 | -8/Materials | Core integrity fell below 20% 7309 | -8/Materials | Destroyed by G-47 Trooper with Particle Gun Last Messages --------------- 07296_ Imp. Heat Sink melted. 07296_ G-47 Trooper destroyed. 07297_ U-05 Engineer lays Concrete. 07299_ G-47 Trooper suffers critical hit (Burn). 07299_ Terminal disabled. 07299_ U-05 Engineer lays Concrete. 07300_ K-01 Serf collects debris. 07300_ U-05 Engineer lays Concrete. 07301_ Penetrated by Slug. 07301_ Imp. Heat Sink destroyed. 07301_ U-05 Engineer lays Concrete. 07304_ K-01 Serf collects debris. 07305_ U-05 Engineer lays Concrete. 07306_ G-47 Trooper heat damages Particle Gun, Lgt. Nuclear Core. 07306_ U-05 Engineer lays Concrete. 07306_ Penetrated by Slug. 07306_ Hvy. Ion Engine destroyed. 07307_ G-47 Trooper heat short circuits Imp. Heat Sink. 07308_ U-05 Engineer lays Concrete. 07308_ K-01 Serf collects debris. Map ----- +----------------------------------------------------+ | ??????????????????????????????????????????????? | | ??????????????????????????????????????????????? | | ??????????????????????????????????????????????? | | ??????????????????????????????????????????????? | | ??????????????????????????????????????????????? | | ??????????????????????????????????????????????? | | ??????????????????????????????????????????????? | | ??????????????????????????????????????????????? | | ????????????????????????????????????????#?????? | | ??????????????????????????????????????? #?????? | | ?????????????????^????????????????????? #?????? | | ?????????????????^? ???????????????? #?????? | | ?????????????????^? ??????????????? #?????? | | ????????????????????# ????????????# #?????? | | ????????????????????# ?????????? # #?????? | | ????????????????????# ##########;; #?????? | | ????????????????????# ! #?????? | | ????????????????????# g #?????? | | ????????????????????# g +?????? | | ????????????????????# #?????? | | ????????????????????######## ! #?????? | | ????????????????????????# ## gu ##?????? | | ???????????????#######???#!# %/ "" #??????? | | ####???????????# #####=%H*]] T" #??????? | | ] #???????????# %%|%kg[]] "" #??????? | | #???????????# @/g=%* #??????? | | #???????????# t!=%%= + ????? | | "" #???????????# ##;;###### ## # ?????? | | "" #???????????## ## % ####"##?# ##??????? | | "" #????????????# ## / #???##??? #???????? | | #????????????# ## #?????????#???????? | | #????????????# ## """" #?????????????????? | | ################# ## """" #?????????????????? | | ? # ## ## """" #?????????????????? | | """" # ## #########?????????????????? | | """" # ## #?#########???????????????? | | """" =# """ !## # #???????????????? | | """" #""""" ## # #???????????????? | | """" #""""" ## + = #???????????????? | | """" #""""" ## # #???????????????? | | """" # """ ## ###########???????????????? | | # ## ## #???????????????? | | ###+########+### # """ #???????????????? | | ![] % # !! """ #???????????????? | | =* T + !! """ #???????????????? | | **[ % !%= # !! #???????????????? | | #####+########## # """ #???????????????? | | # #?#### ### ## """ #???????????????? | | # #?# # ## ! """ #???????????????? | | # #?# "" # ## ????????????????? | +----------------------------------------------------+ Best States ------------- Heat Dissipation 53 Energy Generation 14 Energy Capacity 280 Matter Stores 450 Matter Capacity 450 Sight Range 16 Robot Scan Range 14 Terrain Scan Density 10 Additional Mass Support 6 Armor Coverage 225 Evasion (%) 55 Recoil Reduction 2 Defensive Hacking 10 Authchip Count 4 Item Schematics ----------------- Adv. Beam Cannon | -9/Materials | Scanalyzed Lgt. Treads | -9/Materials | Scanalyzed Arm. Treads | -8/Materials | Scanalyzed Adv. Targeting Computer | -8/Materials | Scanalyzed Robot Schematics ------------------ None Fabricated ------------ Nothing Alien Tech Used ----------------- None Achievements -------------- Hey, That's Mine! Challenges ------------ None Game ------ Seed GravitonSurveybotPick Manual? 0 Play Time 01:28:25 Cumulative 9.1 hours Start 2024.04.04 @ 15:34:24 End 2024.04.06 @ 01:01:39 Sessions 6 Manual Loads 0 Difficulty Rogue Special Mode None Game No. 8 Rogue 8 Adventurer 0 Explorer 0 Win Type - Total 0 Types 0/0/0/0/0/0/0/0/0 Lore% 6 Gallery% 12 Achievement% 10 Wizard Run 0 Options --------- Layout 0 ASCII 0 Keyboard 0 Movement Numpad Keybinds 0 Fullscreen 2 Font 24/Smallcaps Map View 76x50 Zoom Use 0% Tactical HUD 1 Map Filters NONE Filters NONE Steam 1 RUN: 84fcdfbb-cfbe-4b9a-a6ed-32f99da205bc